bitfinex/quotes_ETHUSD_20250801
["timestamp","ask_amount","ask_price","bid_price","bid_amount"]
[1754076724158,6.798,3531.4,3530.9,3.0]
[1754076724363,4.816,3531.3,3531.2,2.8318985]
[1754076724564,6.8,3531.6,3531.2,2.8318985]
[1754076724565,6.8,3531.6,3531.5,23.53391293]
[1754076724792,11.616,3531.6,3531.5,24.32769193]
[1754076724966,6.8,3531.6,3531.5,27.32769193]
[1754076725291,11.616,3531.6,3531.5,27.32769193]
[1754076725789,6.8,3531.6,3531.5,39.22879449]
[1754076725958,6.8,3531.6,3531.5,33.72402149]
[1754076726162,11.616,3531.6,3531.5,33.72402149]
[1754076726366,11.616,3531.6,3531.5,32.18118493]
[1754076726845,6.8,3531.6,3531.5,34.66182793]
[1754076727046,12.166,3531.6,3531.5,4.8543]
[1754076727252,12.166,3531.6,3531.5,3.0]
[1754076727446,12.166,3531.6,3531.5,8.201976]
[1754076727788,12.166,3531.6,3531.5,6.300316]
[1754076728001,12.166,3531.6,3531.5,18.934855]
[1754076728203,14.99757775,3531.6,3531.5,3.0]
[1754076728362,16.06066467,3531.6,3531.5,3.0]
[1754076728563,12.166,3531.6,3531.5,19.435716]
[1754076728888,0.4427445,3532.2,3531.6,33.0]
[1754076729060,4.816,3532.1,3531.8,3.0]
[1754076729405,9.63176975,3532.7,3532.4,2.8308713]
[1754076729406,6.801,3532.7,3532.4,2.8308713]
[1754076729611,4.816,3532.6,3532.5,4.393264]
[1754076729907,4.816,3532.6,3532.4,2.894264]
[1754076730106,4.816,3532.6,3532.5,6.494028]
[1754076730405,5.366,3532.6,3532.5,8.301264]
[1754076730611,5.366,3532.6,3532.5,7.847264]
[1754076730815,5.366,3532.6,3532.5,6.262858]
[1754076730816,5.365,3532.6,3532.5,6.262858]
[1754076731013,5.365,3532.6,3532.5,5.610858]
[1754076731216,5.365,3532.6,3532.5,9.733126]
[1754076731371,5.365,3532.6,3532.5,3.0]
[1754076731372,0.55,3532.6,3532.5,3.0]
[1754076731577,5.365,3532.6,3532.5,5.120286]
[1754076731923,0.55,3532.6,3532.5,7.326536]
[1754076732079,5.365,3532.6,3532.5,5.212819]
[1754076732278,5.365,3532.6,3532.5,8.687242]
[1754076732719,6.801,3532.7,3532.6,5.83077619]
[1754076732920,2.29293454,3534.3,3533.6,3.0]
[1754076732921,9.62954506,3534.2,3533.6,3.0]
[1754076733076,4.814,3534.1,3533.8,3.0]
[1754076733271,4.814,3534.1,3532.8,2.83057808]
[1754076733272,7.1064,3534.1,3532.9,3.0]
[1754076733511,2.82978606,3533.9,3533.2,3.04684]
[1754076733676,1.95657732,3533.9,3533.4,2.990724]
[1754076733877,4.814,3533.8,3533.4,2.990724]
[1754076734130,1.95657732,3533.9,3533.5,3.0]
[1754076734416,6.8,3534.2,3534.1,8.571878]
[1754076734417,9.62949465,3534.2,3534.1,8.571878]
[1754076734718,11.614,3534.2,3534.1,7.42863]
[1754076734880,6.8,3534.2,3534.1,7.42863]
[1754076735217,11.613,3534.2,3534.1,7.42863]
[1754076735390,12.163,3534.2,3534.1,7.42863]
[1754076735606,12.163,3534.2,3534.1,6.89663]
[1754076736200,14.99249465,3534.2,3534.1,6.89663]
[1754076736596,16.77467934,3534.2,3534.1,8.303]
[1754076736800,16.77467934,3534.2,3534.1,3.0]
[1754076737427,14.99249465,3534.2,3534.1,3.0]
[1754076737639,14.99249465,3534.2,3534.1,6.039083]
[1754076737840,14.99249465,3534.2,3534.1,5.535391]
[1754076738141,14.99249465,3534.2,3534.1,3.0]
[1754076738500,0.55,3533.4,3532.8,1.9653]
[1754076738693,4.812,3533.3,3533.1,9.032981]
[1754076738941,4.812,3533.3,3533.2,3.0]
[1754076739273,4.812,3533.3,3533.1,3.0]
[1754076739447,4.812,3533.3,3533.2,9.01024348]
[1754076739649,6.8,3534.2,3533.3,3.0]
[1754076739813,6.8,3534.2,3533.6,5.528316]
[1754076739995,6.8,3534.2,3534.1,35.82957471]
[1754076740201,10.0,3535.6,3534.4,5.82933454]
[1754076740202,2.828707,3535.2,3534.4,5.82933454]
[1754076740403,4.811,3535.1,3534.7,8.562069]
[1754076740613,4.811,3535.1,3534.5,3.0]
[1754076740811,6.799,3535.5,3534.9,3.0]
[1754076741107,6.799,3535.5,3535.1,2.828716]
[1754076741440,0.001,3535.8,3535.6,32.82837425]
[1754076741642,0.001,3535.8,3535.6,35.82837425]
[1754076742595,0.001,3535.8,3535.6,25.80810625]
[1754076743040,0.001,3535.8,3535.6,17.35822525]
[1754076743242,0.001,3535.8,3535.6,25.88829625]
[1754076743529,0.551,3535.8,3535.6,15.103696]
[1754076743730,0.551,3535.8,3535.6,11.746693]
[1754076743929,0.551,3535.8,3535.6,10.279742]
[1754076744132,0.551,3535.8,3535.6,5.644678]
[1754076744348,5.83349425,3535.7,3535.6,3.0]
[1754076744763,5.83349425,3535.7,3534.4,30.0]
[1754076744764,2.82870042,3535.2,3534.5,2.82925449]
[1754076744978,0.55,3535.0,3534.5,22.326583]
[1754076745171,0.55,3535.0,3534.1,3.08243872]
[1754076745172,0.55,3534.8,3534.4,13.887692]
[1754076745454,0.55,3534.8,3534.4,14.119862]
[1754076745660,0.55,3534.8,3534.1,3.08243872]
[1754076745878,0.55,3534.6,3534.2,9.192596]
[1754076746176,0.55,3534.4,3534.2,9.192596]
[1754076746330,0.55,3534.4,3534.2,7.933625]
[1754076746672,0.55,3534.4,3534.3,11.459213]
[1754076746894,0.001,3535.7,3534.7,3.0]
[1754076747092,4.808,3535.6,3535.5,31.223721]
[1754076747232,4.808,3535.6,3535.5,30.007645]
[1754076747570,4.808,3535.6,3535.5,5.889316]
[1754076747789,5.358,3535.6,3535.5,3.0]
[1754076747961,5.358,3535.6,3535.5,6.300316]
[1754076748333,5.357,3535.6,3535.5,15.329274]
[1754076748531,8.18537425,3535.6,3535.5,3.0]
[1754076748880,11.39254684,3535.6,3535.5,3.0]
[1754076749179,0.55,3535.2,3534.6,7.931911]
[1754076749480,0.001,3535.7,3535.4,3.0]
[1754076749662,0.001,3535.7,3535.5,25.110014]
[1754076749826,0.001,3535.7,3535.6,27.340608]
[1754076750030,4.807,3535.7,3535.6,27.66561025]
[1754076750279,4.807,3535.7,3535.6,5.82837425]
[1754076750429,4.807,3535.7,3535.6,24.250796]
[1754076750631,4.807,3535.7,3535.6,26.11952425]
[1754076750844,4.807,3535.7,3535.6,20.154735]
[1754076751180,6.5726,3535.7,3535.6,3.0]
[1754076751379,0.551,3535.7,3535.6,13.251488]
[1754076751678,0.551,3535.7,3535.6,10.845445]
[1754076751679,5.357,3535.7,3535.6,10.845445]
[1754076751887,4.807,3535.7,3535.6,35.82837425]
[1754076752047,4.807,3535.7,3535.6,37.79367425]
[1754076752470,0.001,3535.7,3535.6,37.79367425]
[1754076752689,4.806,3535.7,3535.6,37.79367425]
[1754076753137,4.806,3535.7,3535.6,38.25787425]
[1754076753338,0.001,3536.0,3535.6,40.98270701]
[1754076753549,1e-08,3536.1,3536.0,5.82805429]
[1754076754071,1e-08,3536.1,3536.0,38.25755429]
[1754076754233,0.849174,3537.0,3536.9,2.82733467]
[1754076754435,6.795,3537.6,3537.1,2.82712094]
[1754076754664,1.9179,3538.8,3538.0,3.0]
[1754076754892,6.795,3538.9,3538.2,33.63858085]
[1754076755048,6.795,3538.9,3538.2,3.0]
[1754076755249,6.794,3539.5,3538.2,9.34239193]
[1754076755561,4.806,3538.3,3538.2,8.75597585]
[1754076755760,4.806,3538.3,3538.2,3.0]
[1754076755961,0.001,3538.3,3538.2,15.40548885]
[1754076756269,4.805,3538.3,3538.2,17.83498885]
[1754076756841,0.001,3538.3,3538.2,17.83498885]
[1754076757030,4.805,3538.3,3538.2,38.25579585]
[1754076757235,4.805,3538.3,3538.2,32.79622685]
[1754076757434,5.354,3538.3,3538.2,3.0]
[1754076757676,5.354,3538.3,3538.2,8.65145985]
[1754076757846,5.354,3538.3,3538.2,5.413281]
[1754076758030,5.354,3538.3,3538.2,3.0]
[1754076758636,5.304,3538.3,3538.2,3.0]
[1754076759036,5.304,3538.3,3537.6,0.72083814]
[1754076759037,0.55,3538.2,3537.9,3.0]
[1754076759231,0.55,3538.2,3538.0,2.114097]
[1754076759537,0.55,3538.2,3538.1,10.163814]
[1754076759771,2.82591952,3538.7,3538.1,10.163814]
[1754076759772,1.9179,3539.1,3538.1,10.163814]
[1754076760078,0.23849,3539.1,3538.9,3.0]
[1754076760262,1.9179,3539.6,3538.9,12.050436]
[1754076760464,1.9179,3539.8,3538.3,1.9653]
[1754076760777,4.801,3539.4,3539.3,6.247]
[1754076760946,4.801,3539.4,3539.3,3.0]
[1754076761150,4.801,3539.4,3538.6,2.82596943]
[1754076761151,4.8,3539.4,3539.0,3.0]
[1754076761358,4.8,3539.4,3539.1,5.951906]
[1754076761572,4.8,3539.4,3539.1,4.001837]
[1754076761829,0.55,3539.3,3539.0,3.0]
[1754076761934,0.55,3539.3,3539.1,10.375677]
[1754076762134,6.794,3539.5,3539.3,8.825436]
[1754076762474,6.794,3539.5,3539.3,3.247]
[1754076762647,6.794,3539.5,3539.3,3.0]
[1754076762648,4.8,3539.4,3539.3,3.0]
[1754076762973,4.8,3539.4,3539.3,8.576673]
[1754076763482,7.62533762,3539.4,3539.3,3.0]
[1754076763638,4.8,3539.4,3539.3,3.0]
[1754076763839,6.794,3539.5,3539.4,11.62767]
[1754076764073,12.144,3539.5,3539.4,8.79267]
[1754076764380,12.143,3539.5,3538.9,1.9653]
[1754076764566,0.55,3539.4,3538.9,1.9653]
[1754076764770,0.55,3539.4,3539.2,3.0]
[1754076764940,6.794,3539.5,3539.4,3.0]
[1754076765140,11.593,3539.5,3539.4,28.755167]
[1754076765340,6.794,3539.5,3539.4,31.58050462]
[1754076765583,11.593,3539.5,3539.4,34.75603738]
[1754076765782,11.593,3539.5,3539.4,30.037316]
[1754076765992,12.143,3539.5,3539.4,6.637082]
[1754076766290,12.143,3539.5,3539.4,3.0]
[1754076766498,12.143,3539.5,3539.4,7.661755]
[1754076766870,12.143,3539.5,3539.4,5.802063]
[1754076767067,12.143,3539.5,3539.4,5.768466]
[1754076767267,12.143,3539.5,3539.4,8.309466]
[1754076767499,6.794,3539.5,3539.4,10.295966]
[1754076767789,11.593,3539.5,3539.4,9.09348422]
[1754076767991,11.593,3539.5,3539.4,39.09348422]
[1754076768378,11.593,3539.5,3539.4,34.9865]
[1754076768585,11.593,3539.5,3539.4,33.0]
[1754076768995,11.593,3539.5,3539.4,37.81183762]
[1754076769204,11.593,3539.5,3539.4,35.4372]
[1754076769384,11.593,3539.5,3539.4,28.398111]
[1754076770100,11.593,3539.5,3539.4,30.48537]
[1754076770410,12.143,3539.5,3539.4,8.258123]
[1754076770559,16.1825578,3539.5,3539.4,3.0]
[1754076770762,15.3277,3539.5,3538.6,18.117068]
[1754076770959,3.01621672,3539.4,3538.0,1.9865]
[1754076771258,2.82605694,3538.5,3538.1,28.911927]
[1754076771492,4.796,3538.4,3538.1,13.11821666]
[1754076771760,0.55,3538.3,3537.9,15.473226]
[1754076772076,2.82661062,3537.9,3537.5,1.9865]
[1754076772255,0.55,3538.1,3537.5,20.631907]
[1754076772256,5.345,3537.8,3537.5,20.631907]
[1754076772455,0.03532969,3538.1,3537.5,4.964919]
[1754076772706,4.795,3538.0,3537.9,30.0]
[1754076772872,0.55,3538.3,3538.1,5.065394]
[1754076773073,5.345,3538.2,3538.1,8.065394]
[1754076773277,5.345,3538.2,3538.1,8.334873]
[1754076773606,0.55,3538.1,3537.7,5.338289]
[1754076773898,0.55,3538.1,3537.7,3.981082]
[1754076774102,0.55,3537.9,3537.8,3.0]
[1754076774264,0.55,3537.9,3537.8,5.556871]
[1754076774594,0.55,3538.7,3538.1,3.0]
[1754076774805,3.3761361,3538.4,3538.3,3.0]
[1754076775005,3.3761361,3538.4,3538.3,6.3589]
[1754076775357,0.55,3538.3,3538.0,3.0]
[1754076775598,0.55,3538.1,3538.0,3.0]
[1754076775756,5.345,3538.1,3538.0,20.52456]
[1754076775957,0.55,3539.0,3538.2,3.0]
[1754076776198,0.55,3538.8,3538.5,9.526127]
[1754076776401,0.55,3538.8,3537.8,2.4372]
[1754076776854,4.794,3538.7,3538.6,3.0]
[1754076777055,4.794,3538.7,3538.6,20.896595]
[1754076777560,9.62031012,3539.5,3539.0,12.267491]
[1754076777756,4.794,3539.4,3539.2,5.154344]
[1754076778010,4.794,3539.4,3539.2,15.53539]
[1754076778171,7.61933762,3539.4,3539.1,3.0]
[1754076778370,4.794,3539.4,3539.2,5.371301]
[1754076778701,0.55,3539.3,3539.2,8.371301]
[1754076779002,0.55,3539.3,3538.7,1.9865]
[1754076779003,0.55,3538.3,3537.6,5.237076]
[1754076779171,0.55,3538.3,3536.9,1.9865]
[1754076779172,0.55,3537.9,3536.9,1.9865]
[1754076779504,0.55,3537.0,3536.4,3.664709]
[1754076779658,0.55,3536.8,3536.7,3.825576]
[1754076779862,0.55,3536.8,3536.7,6.36759755]
[1754076780167,0.55,3536.8,3536.5,4.349091]
[1754076780369,2.82674621,3537.7,3536.6,1.9865]
[1754076780623,4.793,3537.6,3537.4,25.215831]
[1754076780826,4.793,3537.6,3537.2,2.82708965]
[1754076781111,0.55,3537.6,3537.5,12.55614912]
[1754076781311,6.788,3537.9,3537.8,32.82661541]
[1754076781516,6.788,3537.9,3537.8,3.0]
[1754076781517,11.58,3537.9,3537.8,3.0]
[1754076781695,11.58,3537.9,3537.8,9.473741]
[1754076782004,12.13,3537.9,3537.8,3.0]
[1754076782316,12.13,3537.9,3537.8,5.824532]
[1754076782516,12.13,3537.9,3537.8,3.0]
[1754076782724,6.788,3537.9,3537.8,11.69843241]
[1754076783014,11.58,3537.9,3537.8,25.14821441]
[1754076783219,11.58,3537.9,3537.8,23.41413541]
[1754076783405,11.58,3537.9,3537.8,15.519633]
[1754076783607,11.58,3537.9,3537.8,18.34624841]
[1754076783920,11.58,3537.9,3537.8,5.82661541]
[1754076784226,7.338,3537.9,3537.8,3.0]
[1754076784541,12.13,3537.9,3537.8,10.534023]
[1754076784695,12.13,3537.9,3537.8,3.0]
[1754076784891,7.338,3537.9,3537.8,3.0]
[1754076785097,12.13,3537.9,3537.8,5.742256]
[1754076785424,12.13,3537.9,3537.8,6.03589]
[1754076785779,12.13,3537.9,3537.8,3.0]
[1754076785985,14.95653551,3537.9,3537.8,3.0]
[1754076786830,12.13,3537.9,3537.8,10.82819]
[1754076787139,14.95653551,3537.9,3537.8,3.0]
[1754076787285,0.55,3537.6,3537.3,3.0]
[1754076787486,4.791,3537.5,3537.1,3.0]
[1754076787827,0.55,3537.4,3537.2,12.832868]
[1754076788000,0.55,3537.4,3537.3,4.81351495]
[1754076788193,0.55,3537.4,3537.3,19.59937595]
[1754076788407,6.788,3537.9,3537.6,3.0]
[1754076788408,0.55,3537.8,3537.6,3.0]
[1754076788608,0.55,3537.8,3537.7,9.086417]
[1754076788814,0.55,3537.8,3537.5,3.0]
[1754076789014,4.791,3537.7,3537.6,6.2498]
[1754076789704,4.791,3537.7,3537.6,5.7178]
[1754076790214,4.791,3537.7,3537.6,6.2028]
[1754076790416,0.55,3537.8,3537.7,7.061113]
[1754076790586,5.341,3537.8,3537.7,12.047613]
[1754076790789,5.341,3537.8,3537.7,6.1058]
[1754076790991,9.6985007,3537.8,3537.7,3.0]
[1754076791185,11.63356801,3537.8,3537.7,3.0]
[1754076791419,6.8365526,3537.8,3537.7,6.103]
[1754076791603,6.788,3537.9,3537.8,35.82661541]
[1754076791801,11.578,3537.9,3537.8,31.38577441]
[1754076792002,11.578,3537.9,3537.8,13.692639]
[1754076792333,11.578,3537.9,3537.8,6.707281]
[1754076792830,0.55,3537.8,3537.7,10.64465531]
[1754076792998,6.788,3537.9,3537.8,2.82661541]
[1754076793341,11.578,3537.9,3537.8,13.84867741]
[1754076793489,11.578,3537.9,3537.8,11.85667741]
[1754076793695,11.578,3537.9,3537.8,21.49776441]
[1754076794121,11.578,3537.9,3537.8,18.12211741]
[1754076794344,11.577,3537.9,3537.8,5.82661541]
[1754076794536,12.127,3537.9,3537.8,7.426694]
[1754076794719,16.16623551,3537.9,3537.3,0.002]
[1754076795034,0.55,3537.5,3537.3,0.002]
[1754076795189,6.788,3537.9,3537.5,8.29143]
[1754076795391,5.339,3537.8,3537.7,2.71101]
[1754076795637,5.339,3537.8,3537.6,11.700568]
[1754076795638,0.55,3537.7,3537.6,11.700568]
[1754076795841,0.55,3537.7,3537.6,14.52734321]
[1754076796037,0.55,3537.7,3537.6,5.768316]
[1754076796237,4.624729,3537.7,3537.6,3.0]
[1754076796533,4.624729,3537.7,3537.3,0.002]
[1754076796534,3.37693503,3537.4,3537.3,0.002]
[1754076796840,8.20027171,3537.4,3537.3,0.002]
[1754076797023,10.53043503,3537.4,3537.3,0.002]
[1754076797219,3.3771748,3537.1,3536.2,0.002]
[1754076797399,10.5306748,3537.1,3537.0,0.77751837]
[1754076797787,0.849205,3537.4,3537.3,2.82701495]
[1754076797990,4.788,3537.7,3537.5,2.82680329]
[1754076798223,4.788,3537.7,3537.6,38.20117521]
[1754076798429,0.97076021,3539.3,3537.8,3.0]
[1754076798631,0.97076021,3539.3,3539.2,2.82549728]
[1754076798831,0.001,3539.5,3539.4,35.82533762]
[1754076799215,4.789,3539.6,3539.5,35.8252578]
[1754076799443,4.789,3539.6,3539.5,38.1996578]
[1754076799644,0.001,3539.6,3539.5,38.1996578]
[1754076799844,4.789,3539.6,3539.5,38.1996578]
[1754076800064,0.001,3539.6,3539.5,38.1996578]
[1754076800243,4.788,3539.6,3539.5,38.1996578]
[1754076800640,4.788,3539.6,3539.5,39.4823836]
[1754076801268,4.788,3539.6,3539.5,9.4823836]
[1754076801472,4.788,3539.6,3539.5,8.1996578]
[1754076801637,4.788,3539.6,3539.5,18.8271708]
[1754076801841,4.788,3539.6,3539.5,33.2655778]
[1754076802037,5.338,3539.6,3539.2,2.8254826]
[1754076802268,5.338,3539.6,3539.4,3.0]
[1754076802269,0.55,3539.5,3539.4,3.0]
[1754076802853,0.55,3539.5,3539.4,25.37707962]
[1754076803183,0.55,3539.5,3538.4,4.9697978]
[1754076803368,0.03531572,3539.5,3539.1,11.406532]
[1754076803525,3.37535972,3539.4,3538.4,4.9697978]
[1754076803725,0.55,3539.4,3539.2,6.300316]
[1754076803931,3.37532346,3539.5,3538.7,2.82589057]
[1754076804272,0.55,3539.3,3539.0,3.0]
[1754076804476,0.55,3539.3,3538.9,7.179533]
[1754076804477,0.55,3539.3,3539.2,2.970316]
[1754076804776,0.55,3539.3,3538.7,3.0]
[1754076804935,5.32804697,3539.3,3538.7,3.0]
[1754076805273,0.55,3539.3,3538.8,2.82581666]
[1754076805482,0.55,3539.3,3538.9,5.30186142]
[1754076805644,0.001,3539.6,3539.1,30.0]
[1754076805842,0.001,3539.6,3539.5,35.8252578]
[1754076806048,4.786,3539.6,3539.5,35.8252578]
[1754076806276,4.786,3539.6,3539.5,37.7620578]
[1754076806568,4.786,3539.6,3539.5,38.1996578]
[1754076806769,0.8204361,3541.5,3540.4,2.8245396]
[1754076807016,0.001,3541.6,3541.5,2.82366228]
[1754076807200,0.001,3541.6,3541.5,24.592057]
[1754076807201,4.786,3541.6,3541.5,24.592057]
[1754076807368,5.336,3541.6,3541.5,24.592057]
[1754076807568,4.786,3541.6,3541.5,27.41571928]
[1754076807778,0.001,3541.6,3541.5,27.41571928]
[1754076808107,4.786,3541.6,3541.5,27.41571928]
[1754076808280,0.001,3541.6,3541.5,24.05686528]
[1754076808480,4.786,3541.6,3541.5,26.43126528]
[1754076808818,4.786,3541.6,3541.5,10.930203]
[1754076809102,3.30318256,3541.6,3541.5,3.0]
[1754076809279,10.55348256,3541.6,3541.5,3.0]
[1754076809484,0.55,3541.2,3540.7,3.0]
[1754076809681,0.55,3541.0,3540.9,10.406853]
[1754076810012,2.8243541,3540.7,3540.0,12.64362725]
[1754076810183,0.55,3539.8,3539.5,2.82518754]
[1754076810387,4.194068,3539.7,3539.6,25.956402]
[1754076810584,4.094068,3539.7,3539.6,29.29466398]
[1754076810783,4.194068,3539.7,3539.6,32.82517798]
[1754076811106,6.886,3540.6,3540.0,30.0]
[1754076811280,6.786,3540.6,3540.5,32.00523882]
[1754076811481,11.669,3540.6,3540.5,35.00523882]
[1754076811813,11.669,3540.6,3540.5,34.78168982]
[1754076811971,11.569,3540.6,3540.5,34.78168982]
[1754076812173,12.219,3540.6,3540.5,3.0]
[1754076812510,12.219,3540.6,3540.5,8.296654]
[1754076812710,7.436,3540.6,3540.5,5.82445982]
[1754076812896,11.569,3540.6,3540.5,35.82445982]
[1754076813099,6.786,3540.6,3540.5,36.26205982]
[1754076813410,11.568,3540.6,3540.5,36.26205982]
[1754076813582,0.001,3541.6,3541.2,2.82385032]
[1754076813782,4.782,3541.5,3540.9,2.82408397]
[1754076813993,4.782,3541.5,3541.2,3.0]
[1754076814195,0.001,3541.6,3540.5,0.4376]
[1754076814196,0.001,3541.6,3541.4,3.0]
[1754076814395,0.001,3541.6,3540.6,2.82437374]
[1754076814396,0.1,3540.8,3540.6,2.82437374]
[1754076814608,0.001,3541.6,3540.7,20.61984043]
[1754076814806,4.782,3541.5,3540.9,32.82410242]
[1754076815009,0.1,3541.2,3541.1,18.303817]
[1754076815211,0.001,3541.6,3541.4,16.100147]
[1754076815520,4.882,3541.5,3541.4,19.100147]
[1754076815693,5.432,3541.5,3541.4,19.100147]
[1754076815887,0.65,3541.5,3541.4,21.527909]
[1754076816194,0.55,3541.5,3541.4,21.527909]
[1754076816395,0.1,3541.5,3541.4,21.527909]
[1754076816595,4.881,3541.5,3541.4,21.527909]
[1754076817024,0.1,3541.5,3541.4,35.82374202]
[1754076817211,0.001,3541.6,3541.5,35.82366228]
[1754076817412,4.782,3541.6,3541.5,35.82366228]
[1754076817838,0.001,3541.6,3541.5,36.26126228]
[1754076818015,0.001,3542.0,3541.9,35.8233434]
[1754076818270,0.4482,3543.3,3541.9,35.8233434]
[1754076818271,0.1,3543.3,3542.4,30.0]
[1754076818418,0.001,3543.6,3543.1,35.82238717]
[1754076818930,0.001,3543.6,3543.5,2.82206857]
[1754076819099,1e-08,3543.6,3543.5,35.83626618]
[1754076819301,1e-08,3543.6,3543.5,36.25966857]
[1754076819836,1e-08,3543.6,3543.5,36.03881612]
[1754076820818,0.55000001,3543.6,3543.5,3.21674755]
[1754076821021,0.44820001,3543.6,3542.4,2.82294489]
[1754076821191,1e-08,3543.6,3543.5,32.82206857]
[1754076821933,1e-08,3543.6,3543.5,33.03265895]
[1754076822967,0.1,3545.7,3543.5,30.67595057]
[1754076823180,6.782,3546.1,3545.9,2.82008939]
[1754076823337,6.782,3546.1,3546.0,2.82007896]
[1754076823523,11.56,3546.1,3546.0,19.664571]
[1754076823723,11.66,3546.1,3546.0,18.1945]
[1754076823924,11.66,3546.1,3546.0,19.106053]
[1754076824240,11.66,3546.1,3546.0,5.94775473]
[1754076824457,12.1082,3546.1,3546.0,3.20737073]
[1754076824621,13.31902,3546.1,3546.0,5.96893673]
[1754076824825,18.05631943,3546.1,3546.0,3.20737073]
[1754076825055,18.60631943,3546.1,3546.0,2.525]
[1754076825236,18.60631943,3546.1,3543.6,4.776]
[1754076825237,0.1,3544.6,3544.0,2.82160792]
[1754076825435,4.776,3544.5,3543.7,30.0]
[1754076825637,4.776,3544.5,3544.1,30.0]
[1754076826042,0.1,3544.4,3543.6,30.0]
[1754076826262,0.1,3544.4,3544.0,30.0]
[1754076826474,0.1,3544.3,3544.2,26.512685]
[1754076826771,0.55,3545.0,3543.6,30.0]
[1754076826974,0.4685,3545.7,3545.4,11.539905]
[1754076827271,4.776,3545.6,3545.2,3.0]
[1754076827475,0.4685,3545.7,3545.3,32.028669]
[1754076827767,4.776,3545.6,3545.5,33.0]
[1754076827935,4.776,3545.6,3545.5,25.279857]
[1754076828365,0.1,3546.8,3546.2,3.0]
[1754076828569,4.775,3546.7,3545.9,3.0]
[1754076828877,4.775,3546.7,3546.6,35.81960187]
[1754076829158,4.875,3546.7,3546.6,9.99740969]
[1754076829527,0.101,3547.0,3546.6,12.81701156]
[1754076829864,0.001,3547.0,3546.9,35.81936338]
[1754076830242,4.774,3547.0,3546.9,35.81936338]
[1754076830443,0.001,3547.0,3546.9,35.81936338]
[1754076830651,4.774,3547.0,3546.9,29.71355838]
[1754076830956,4.774,3547.0,3546.9,35.81936338]
[1754076832128,4.774,3547.0,3546.9,5.81936338]
[1754076832441,4.774,3547.0,3546.9,35.81936338]
[1754076833074,8.2287,3547.0,3546.9,3.0]
[1754076833226,0.65,3546.8,3546.7,29.731924]
[1754076833435,0.65,3546.8,3546.7,32.731924]
[1754076833634,0.14730333,3549.7,3546.9,70.0]
[1754076833939,0.838,3549.6,3547.8,3.0]
[1754076834270,0.838,3549.5,3549.4,5.81737758]
[1754076834479,0.838,3549.5,3549.4,35.81737758]
[1754076834790,1.8488,3550.3,3549.7,3.0]
[1754076835072,0.14726603,3550.6,3550.4,32.81658404]
[1754076835254,0.001,3550.9,3550.4,32.81658404]
[1754076835255,5.022,3550.7,3550.4,29.84791404]
[1754076835461,5.028,3550.6,3550.4,2.81658404]
[1754076835658,5.028,3550.6,3550.4,20.71357804]
[1754076835842,0.001,3550.9,3550.4,20.71357804]
[1754076836042,0.001,3550.9,3550.4,23.82819104]
[1754076836244,5.029,3550.5,3550.4,23.82819104]
[1754076837102,0.001,3550.5,3550.4,32.81658404]
[1754076837403,0.001,3550.5,3550.4,35.81658404]
[1754076837589,0.4695,3550.5,3547.7,8.49209043]
[1754076837772,0.55,3550.3,3550.2,2.81671173]
[1754076837975,0.54895,3550.4,3550.3,32.81666338]
[1754076838187,0.001,3550.5,3550.4,9.829679]
[1754076838392,0.001,3550.5,3547.3,1.48916792]
[1754076838591,0.55,3550.1,3548.0,2.81848928]
[1754076838768,0.55,3550.1,3549.9,2.81698076]
[1754076838769,0.4685,3550.0,3549.9,2.81698076]
[1754076839099,0.001,3550.5,3550.4,32.81658404]
[1754076839597,1e-08,3550.5,3550.4,35.81658404]
[1754076839797,5.052,3551.6,3551.5,2.81571167]
[1754076839997,5.052,3551.6,3551.5,33.0]
[1754076840401,5.5205,3551.6,3551.5,10.320669]
[1754076840604,2.3173,3551.6,3551.5,3.0]
[1754076840815,9.10557155,3551.6,3551.5,3.0]
[1754076840965,4.05757155,3551.6,3551.5,3.0]
[1754076841174,6.70877155,3551.6,3551.5,3.0]
[1754076841374,6.77,3551.9,3551.8,2.81547384]
[1754076841680,11.842,3551.9,3551.8,11.90567284]
[1754076841882,6.77,3551.9,3551.8,11.90567284]
[1754076842080,6.77,3551.9,3551.8,19.33594884]
[1754076842303,11.839,3551.9,3551.8,16.01757184]
[1754076842699,13.5729,3551.9,3551.8,10.530063]
[1754076842908,15.8902,3551.9,3551.8,3.0]
[1754076843069,0.55,3551.6,3551.5,0.21444821]
[1754076843271,7.9539,3551.9,3551.6,27.862924]
[1754076843477,7.9539,3551.9,3550.5,3.27095762]
[1754076843478,6.77,3551.9,3551.3,30.0]
[1754076843680,7.32,3551.9,3551.8,2.81547384]
[1754076843884,12.384,3551.9,3551.8,32.81547384]
[1754076844206,11.834,3551.9,3551.6,30.0]
[1754076844412,6.77,3551.9,3551.6,32.81562867]
[1754076844619,6.77,3551.9,3551.8,30.0]